{"text_format":"3","workbook":"xlsx","n_sheets":1,"sheets":["Сімейний бюджет на місяць"],"not_rendered":{"defined_names":1},"read":"whole","date_system":"1900"}

{"sheet":"Сімейний бюджет на місяць","index":0,"n_rows":68,"n_cols":9,"rows_kept":68,"merged":[[0,0,0,6],[2,0,2,1],[2,5,2,6],[8,5,8,6],[18,0,18,3],[27,5,27,8],[29,0,29,3],[36,0,36,3],[37,5,37,8],[42,0,42,3],[44,5,44,8],[54,0,54,3],[54,5,54,8],[61,0,61,3],[62,5,62,8]]}
["Сімейний бюджет на місяць"]
[]
["Загальні заплановані витрати",null,"Загальні фактичні витрати","Загальна різниця",null,"Запланований дохід на місяць"]
[null,{"$f":"Housing[[#Totals],[Запланована витрата]]+Transportation[[#Totals],[Запланована витрата]]+Insurance[[#Totals],[Запланована витрата]]+Food[[#Totals],[Запланована витрата]]+Children[[#Totals],[Запланована витрата]]+Legal[[#Totals],[Запланована витрата]]+Savings[[#Totals],[Запланована витрата]]+Loans[[#Totals],[Запланована витрата]]+Entertainment[[#Totals],[Запланована витрата]]+Taxes[[#Totals],[Запланована витрата]]+PersonalCare[[#Totals],[Запланована витрата]]+Pets[[#Totals],[Запланована витрата]]+Gifts[[#Totals],[Запланована витрата]]","v":{"v":1203,"d":"1,203 грн."}},{"$f":"Housing[[#Totals],[Фактична витрата]]+Transportation[[#Totals],[Фактична витрата]]+Insurance[[#Totals],[Фактична витрата]]+Food[[#Totals],[Фактична витрата]]+Children[[#Totals],[Фактична витрата]]+Legal[[#Totals],[Фактична витрата]]+Savings[[#Totals],[Фактична витрата]]+Loans[[#Totals],[Фактична витрата]]+Entertainment[[#Totals],[Фактична витрата]]+Taxes[[#Totals],[Фактична витрата]]+PersonalCare[[#Totals],[Фактична витрата]]+Pets[[#Totals],[Фактична витрата]]+Gifts[[#Totals],[Фактична витрата]]","v":{"v":1317,"d":"1,317 грн."}},{"$f":"Housing[[#Totals],[Різниця]]+Transportation[[#Totals],[Різниця]]+Insurance[[#Totals],[Різниця]]+Food[[#Totals],[Різниця]]+Children[[#Totals],[Різниця]]+Legal[[#Totals],[Різниця]]+Savings[[#Totals],[Різниця]]+Loans[[#Totals],[Різниця]]+Entertainment[[#Totals],[Різниця]]+Taxes[[#Totals],[Різниця]]+PersonalCare[[#Totals],[Різниця]]+Pets[[#Totals],[Різниця]]+Gifts[[#Totals],[Різниця]]","v":{"v":-114,"d":"-114 грн."}},null,"Income 1",{"v":4000,"d":"4,000 грн."}]
[{"$nulls":5},"Income 2",{"v":1200,"d":"1,200 грн."}]
["Житло","Запланована витрата","Фактична витрата","Різниця",null,"Extra income",{"v":300,"d":"300 грн."}]
["Іпотека або орендна плата",{"v":1000,"d":"1,000 грн."},{"v":1000,"d":"1,000 грн."},{"$f":"Housing[Запланована витрата]-Housing[Фактична витрата]","v":{"v":0,"d":"0 грн."}},null,"Total monthly income",{"$f":"SUM(G4:G6)","v":{"v":5500,"d":"5,500 грн."}}]
["Друга іпотека або орендна плата",{"v":0,"d":"0 грн."},{"v":0,"d":"0 грн."},{"$f":"Housing[Запланована витрата]-Housing[Фактична витрата]","v":{"v":0,"d":"0 грн."}}]
["Телефон",{"v":62,"d":"62 грн."},{"v":100,"d":"100 грн."},{"$f":"Housing[Запланована витрата]-Housing[Фактична витрата]","v":{"v":-38,"d":"-38 грн."}},null,"Фактичний дохід за місяць"]
["Електрика",{"v":44,"d":"44 грн."},{"v":125,"d":"125 грн."},{"$f":"Housing[Запланована витрата]-Housing[Фактична витрата]","v":{"v":-81,"d":"-81 грн."}},null,"Дохід 1",{"v":4000,"d":"4,000 грн."}]
["Газ",{"v":22,"d":"22 грн."},{"v":35,"d":"35 грн."},{"$f":"Housing[Запланована витрата]-Housing[Фактична витрата]","v":{"v":-13,"d":"-13 грн."}},null,"Дохід 2",{"v":1200,"d":"1,200 грн."}]
["Вода та каналізація",{"v":8,"d":"8 грн."},{"v":8,"d":"8 грн."},{"$f":"Housing[Запланована витрата]-Housing[Фактична витрата]","v":{"v":0,"d":"0 грн."}},null,"Додатковий дохід",{"v":300,"d":"300 грн."}]
["Кабельне телебачення",{"v":34,"d":"34 грн."},{"v":39,"d":"39 грн."},{"$f":"Housing[Запланована витрата]-Housing[Фактична витрата]","v":{"v":-5,"d":"-5 грн."}},null,"Загальний дохід за місяць",{"$f":"SUM(G10:G12)","v":{"v":5500,"d":"5,500 грн."}}]
["Вивезення сміття",{"v":10,"d":"10 грн."},{"v":10,"d":"10 грн."},{"$f":"Housing[Запланована витрата]-Housing[Фактична витрата]","v":{"v":0,"d":"0 грн."}}]
["Обслуговування та ремонт",{"v":23,"d":"23 грн."},{"v":0,"d":"0 грн."},{"$f":"Housing[Запланована витрата]-Housing[Фактична витрата]","v":{"v":23,"d":"23 грн."}},null,"Запланований баланс\n",{"$f":"SUM(G7-B4)","v":{"v":4297,"d":"4,297 грн."}}]
["Начиння",{"v":0,"d":"0 грн."},{"v":0,"d":"0 грн."},{"$f":"Housing[Запланована витрата]-Housing[Фактична витрата]","v":{"v":0,"d":"0 грн."}},null,"Фактичний баланс",{"$f":"SUM(G13-C4)","v":{"v":4183,"d":"4,183 грн."}}]
["Інше",{"v":0,"d":"0 грн."},{"v":0,"d":"0 грн."},{"$f":"Housing[Запланована витрата]-Housing[Фактична витрата]","v":{"v":0,"d":"0 грн."}},null,"Різниця",{"$f":"SUM(G16-G15)","v":{"v":-114,"d":"-114 грн."}}]
["Разом",{"$f":"SUBTOTAL(109,Housing[Запланована витрата])","v":{"v":1203,"d":"1,203 грн."}},{"$f":"SUBTOTAL(109,Housing[Фактична витрата])","v":{"v":1317,"d":"1,317 грн."}},{"$f":"SUBTOTAL(109,Housing[Різниця])","v":{"v":-114,"d":"-114 грн."}}]
[]
["Транспорт","Запланована витрата","Фактична витрата","Різниця",null,"Позики","Запланована витрата","Фактична витрата","Різниця"]
["Виплата за автомобіль 1",null,null,{"$f":"Transportation[Запланована витрата]-Transportation[Фактична витрата]","v":{"v":0,"d":"0 грн."}},null,"Особисті",null,null,{"$f":"Loans[Запланована витрата]-Loans[Фактична витрата]","v":{"v":0,"d":"0 грн."}}]
["Виплата за автомобіль 2",null,null,{"$f":"Transportation[Запланована витрата]-Transportation[Фактична витрата]","v":{"v":0,"d":"0 грн."}},null,"Студентська",null,null,{"$f":"Loans[Запланована витрата]-Loans[Фактична витрата]","v":{"v":0,"d":"0 грн."}}]
["Автобус, таксі",null,null,{"$f":"Transportation[Запланована витрата]-Transportation[Фактична витрата]","v":{"v":0,"d":"0 грн."}},null,"Кредитна картка",null,null,{"$f":"Loans[Запланована витрата]-Loans[Фактична витрата]","v":{"v":0,"d":"0 грн."}}]
["Страхування",null,null,{"$f":"Transportation[Запланована витрата]-Transportation[Фактична витрата]","v":{"v":0,"d":"0 грн."}},null,"Кредитна картка",null,null,{"$f":"Loans[Запланована витрата]-Loans[Фактична витрата]","v":{"v":0,"d":"0 грн."}}]
["Права",null,null,{"$f":"Transportation[Запланована витрата]-Transportation[Фактична витрата]","v":{"v":0,"d":"0 грн."}},null,"Кредитна картка",null,null,{"$f":"Loans[Запланована витрата]-Loans[Фактична витрата]","v":{"v":0,"d":"0 грн."}}]
["Пальне",null,null,{"$f":"Transportation[Запланована витрата]-Transportation[Фактична витрата]","v":{"v":0,"d":"0 грн."}},null,"Інше",null,null,{"$f":"Loans[Запланована витрата]-Loans[Фактична витрата]","v":{"v":0,"d":"0 грн."}}]
["Обслуговування",null,null,{"$f":"Transportation[Запланована витрата]-Transportation[Фактична витрата]","v":{"v":0,"d":"0 грн."}},null,"Разом",{"$f":"SUBTOTAL(109,Loans[Запланована витрата])","v":{"v":0,"d":"0 грн."}},{"$f":"SUBTOTAL(109,Loans[Фактична витрата])","v":{"v":0,"d":"0 грн."}},{"$f":"SUBTOTAL(109,Loans[Різниця])","v":{"v":0,"d":"0 грн."}}]
["Інше",null,null,{"$f":"Transportation[Запланована витрата]-Transportation[Фактична витрата]","v":{"v":0,"d":"0 грн."}}]
["Разом",{"$f":"SUBTOTAL(109,Transportation[Запланована витрата])","v":{"v":0,"d":"0 грн."}},{"$f":"SUBTOTAL(109,Transportation[Фактична витрата])","v":{"v":0,"d":"0 грн."}},{"$f":"SUBTOTAL(109,Transportation[Різниця])","v":{"v":0,"d":"0 грн."}},null,"Дозвілля","Запланована витрата","Фактична витрата","Різниця"]
[{"$nulls":5},"Відео/DVD",null,null,{"$f":"Entertainment[Запланована витрата]-Entertainment[Фактична витрата]","v":{"v":0,"d":"0 грн."}}]
["Страхування","Запланована витрата","Фактична витрата","Різниця",null,"Компакт-диски",null,null,{"$f":"Entertainment[Запланована витрата]-Entertainment[Фактична витрата]","v":{"v":0,"d":"0 грн."}}]
["Головна",null,null,{"$f":"Insurance[Запланована витрата]-Insurance[Фактична витрата]","v":{"v":0,"d":"0 грн."}},null,"Кіно",null,null,{"$f":"Entertainment[Запланована витрата]-Entertainment[Фактична витрата]","v":{"v":0,"d":"0 грн."}}]
["Здоров'я",null,null,{"$f":"Insurance[Запланована витрата]-Insurance[Фактична витрата]","v":{"v":0,"d":"0 грн."}},null,"Концерти",null,null,{"$f":"Entertainment[Запланована витрата]-Entertainment[Фактична витрата]","v":{"v":0,"d":"0 грн."}}]
["Строк",null,null,{"$f":"Insurance[Запланована витрата]-Insurance[Фактична витрата]","v":{"v":0,"d":"0 грн."}},null,"Спортивні змагання",null,null,{"$f":"Entertainment[Запланована витрата]-Entertainment[Фактична витрата]","v":{"v":0,"d":"0 грн."}}]
["Інше",null,null,{"$f":"Insurance[Запланована витрата]-Insurance[Фактична витрата]","v":{"v":0,"d":"0 грн."}},null,"Театр",null,null,{"$f":"Entertainment[Запланована витрата]-Entertainment[Фактична витрата]","v":{"v":0,"d":"0 грн."}}]
["Разом",{"$f":"SUBTOTAL(109,Insurance[Запланована витрата])","v":{"v":0,"d":"0 грн."}},{"$f":"SUBTOTAL(109,Insurance[Фактична витрата])","v":{"v":0,"d":"0 грн."}},{"$f":"SUBTOTAL(109,Insurance[Різниця])","v":{"v":0,"d":"0 грн."}},null,"Інше",null,null,{"$f":"Entertainment[Запланована витрата]-Entertainment[Фактична витрата]","v":{"v":0,"d":"0 грн."}}]
[{"$nulls":5},"Разом",{"$f":"SUBTOTAL(109,Entertainment[Запланована витрата])","v":{"v":0,"d":"0 грн."}},{"$f":"SUBTOTAL(109,Entertainment[Фактична витрата])","v":{"v":0,"d":"0 грн."}},{"$f":"SUBTOTAL(109,Entertainment[Різниця])","v":{"v":0,"d":"0 грн."}}]
["Їжа","Запланована витрата","Фактична витрата","Різниця"]
["Продукти",null,null,{"$f":"Food[Запланована витрата]-Food[Фактична витрата]","v":{"v":0,"d":"0 грн."}},null,"Податки","Запланована витрата","Фактична витрата","Різниця"]
["Ресторани та кафе",null,null,{"$f":"Food[Запланована витрата]-Food[Фактична витрата]","v":{"v":0,"d":"0 грн."}},null,"Державний",null,null,{"$f":"Taxes[Запланована витрата]-Taxes[Фактична витрата]","v":{"v":0,"d":"0 грн."}}]
["Інше",null,null,{"$f":"Food[Запланована витрата]-Food[Фактична витрата]","v":{"v":0,"d":"0 грн."}},null,"Обласний",null,null,{"$f":"Taxes[Запланована витрата]-Taxes[Фактична витрата]","v":{"v":0,"d":"0 грн."}}]
["Разом",{"$f":"SUBTOTAL(109,Food[Запланована витрата])","v":{"v":0,"d":"0 грн."}},{"$f":"SUBTOTAL(109,Food[Фактична витрата])","v":{"v":0,"d":"0 грн."}},{"$f":"SUBTOTAL(109,Food[Різниця])","v":{"v":0,"d":"0 грн."}},null,"Місцевий",null,null,{"$f":"Taxes[Запланована витрата]-Taxes[Фактична витрата]","v":{"v":0,"d":"0 грн."}}]
[{"$nulls":5},"Інше",null,null,{"$f":"Taxes[Запланована витрата]-Taxes[Фактична витрата]","v":{"v":0,"d":"0 грн."}}]
["Діти","Запланована витрата","Фактична витрата","Різниця",null,"Разом",{"$f":"SUBTOTAL(109,Taxes[Запланована витрата])","v":{"v":0,"d":"0 грн."}},{"$f":"SUBTOTAL(109,Taxes[Фактична витрата])","v":{"v":0,"d":"0 грн."}},{"$f":"SUBTOTAL(109,Taxes[Різниця])","v":{"v":0,"d":"0 грн."}}]
["Медична допомога",null,null,{"$f":"Children[Запланована витрата]-Children[Фактична витрата]","v":{"v":0,"d":"0 грн."}}]
["Одяг",null,null,{"$f":"Children[Запланована витрата]-Children[Фактична витрата]","v":{"v":0,"d":"0 грн."}},null,"Особиста гігієна","Запланована витрата","Фактична витрата","Різниця"]
["Плата за школу",null,null,{"$f":"Children[Запланована витрата]-Children[Фактична витрата]","v":{"v":0,"d":"0 грн."}},null,"Медична допомога",null,null,{"$f":"PersonalCare[Запланована витрата]-PersonalCare[Фактична витрата]","v":{"v":0,"d":"0 грн."}}]
["Шкільне приладдя",null,null,{"$f":"Children[Запланована витрата]-Children[Фактична витрата]","v":{"v":0,"d":"0 грн."}},null,"Волосся та манікюр",null,null,{"$f":"PersonalCare[Запланована витрата]-PersonalCare[Фактична витрата]","v":{"v":0,"d":"0 грн."}}]
["Різні внески та виплати",null,null,{"$f":"Children[Запланована витрата]-Children[Фактична витрата]","v":{"v":0,"d":"0 грн."}},null,"Одяг",null,null,{"$f":"PersonalCare[Запланована витрата]-PersonalCare[Фактична витрата]","v":{"v":0,"d":"0 грн."}}]
["Сніданки",null,null,{"$f":"Children[Запланована витрата]-Children[Фактична витрата]","v":{"v":0,"d":"0 грн."}},null,"Хімчистка",null,null,{"$f":"PersonalCare[Запланована витрата]-PersonalCare[Фактична витрата]","v":{"v":0,"d":"0 грн."}}]
["Догляд за дитиною",null,null,{"$f":"Children[Запланована витрата]-Children[Фактична витрата]","v":{"v":0,"d":"0 грн."}},null,"Клуб здоров'я",null,null,{"$f":"PersonalCare[Запланована витрата]-PersonalCare[Фактична витрата]","v":{"v":0,"d":"0 грн."}}]
["Іграшки та ігри",null,null,{"$f":"Children[Запланована витрата]-Children[Фактична витрата]","v":{"v":0,"d":"0 грн."}},null,"Різні внески та виплати",null,null,{"$f":"PersonalCare[Запланована витрата]-PersonalCare[Фактична витрата]","v":{"v":0,"d":"0 грн."}}]
["Інше",null,null,{"$f":"Children[Запланована витрата]-Children[Фактична витрата]","v":{"v":0,"d":"0 грн."}},null,"Інше",null,null,{"$f":"PersonalCare[Запланована витрата]-PersonalCare[Фактична витрата]","v":{"v":0,"d":"0 грн."}}]
["Разом",{"$f":"SUBTOTAL(109,Children[Запланована витрата])","v":{"v":0,"d":"0 грн."}},{"$f":"SUBTOTAL(109,Children[Фактична витрата])","v":{"v":0,"d":"0 грн."}},{"$f":"SUBTOTAL(109,Children[Різниця])","v":{"v":0,"d":"0 грн."}},null,"Разом",{"$f":"SUBTOTAL(109,PersonalCare[Запланована витрата])","v":{"v":0,"d":"0 грн."}},{"$f":"SUBTOTAL(109,PersonalCare[Фактична витрата])","v":{"v":0,"d":"0 грн."}},{"$f":"SUBTOTAL(109,PersonalCare[Різниця])","v":{"v":0,"d":"0 грн."}}]
[]
["Юридичні витрати","Запланована витрата","Фактична витрата","Різниця",null,"Домашні тварини","Запланована витрата","Фактична витрата","Різниця"]
["Повірений",null,null,{"$f":"Legal[Запланована витрата]-Legal[Фактична витрата]","v":{"v":0,"d":"0 грн."}},null,"Їжа",null,null,{"$f":"Pets[Запланована витрата]-Pets[Фактична витрата]","v":{"v":0,"d":"0 грн."}}]
["Аліменти",null,null,{"$f":"Legal[Запланована витрата]-Legal[Фактична витрата]","v":{"v":0,"d":"0 грн."}},null,"Медична допомога",null,null,{"$f":"Pets[Запланована витрата]-Pets[Фактична витрата]","v":{"v":0,"d":"0 грн."}}]
["Виплати",null,null,{"$f":"Legal[Запланована витрата]-Legal[Фактична витрата]","v":{"v":0,"d":"0 грн."}},null,"Догляд за тваринами",null,null,{"$f":"Pets[Запланована витрата]-Pets[Фактична витрата]","v":{"v":0,"d":"0 грн."}}]
["Інше",null,null,{"$f":"Legal[Запланована витрата]-Legal[Фактична витрата]","v":{"v":0,"d":"0 грн."}},null,"Іграшки",null,null,{"$f":"Pets[Запланована витрата]-Pets[Фактична витрата]","v":{"v":0,"d":"0 грн."}}]
["Разом",{"$f":"SUBTOTAL(109,Legal[Запланована витрата])","v":{"v":0,"d":"0 грн."}},{"$f":"SUBTOTAL(109,Legal[Фактична витрата])","v":{"v":0,"d":"0 грн."}},{"$f":"SUBTOTAL(109,Legal[Різниця])","v":{"v":0,"d":"0 грн."}},null,"Інше",null,null,{"$f":"Pets[Запланована витрата]-Pets[Фактична витрата]","v":{"v":0,"d":"0 грн."}}]
[{"$nulls":5},"Разом",{"$f":"SUBTOTAL(109,Pets[Запланована витрата])","v":{"v":0,"d":"0 грн."}},{"$f":"SUBTOTAL(109,Pets[Фактична витрата])","v":{"v":0,"d":"0 грн."}},{"$f":"SUBTOTAL(109,Pets[Різниця])","v":{"v":0,"d":"0 грн."}}]
["Заощадження та вкладення","Запланована витрата","Фактична витрата","Різниця"]
["Пенсійний рахунок",null,null,{"$f":"Savings[Запланована витрата]-Savings[Фактична витрата]","v":{"v":0,"d":"0 грн."}},null,"Подарунки та пожертви","Запланована витрата","Фактична витрата","Різниця"]
["Інвестиційний рахунок",null,null,{"$f":"Savings[Запланована витрата]-Savings[Фактична витрата]","v":{"v":0,"d":"0 грн."}},null,"Благодійність 1",null,null,{"$f":"Gifts[Запланована витрата]-Gifts[Фактична витрата]","v":{"v":0,"d":"0 грн."}}]
["Вищий навчальний заклад",null,null,{"$f":"Savings[Запланована витрата]-Savings[Фактична витрата]","v":{"v":0,"d":"0 грн."}},null,"Благодійність 2",null,null,{"$f":"Gifts[Запланована витрата]-Gifts[Фактична витрата]","v":{"v":0,"d":"0 грн."}}]
["Інше",null,null,{"$f":"Savings[Запланована витрата]-Savings[Фактична витрата]","v":{"v":0,"d":"0 грн."}},null,"Благодійність 3",null,null,{"$f":"Gifts[Запланована витрата]-Gifts[Фактична витрата]","v":{"v":0,"d":"0 грн."}}]
["Разом",{"$f":"SUBTOTAL(109,Savings[Запланована витрата])","v":{"v":0,"d":"0 грн."}},{"$f":"SUBTOTAL(109,Savings[Фактична витрата])","v":{"v":0,"d":"0 грн."}},{"$f":"SUBTOTAL(109,Savings[Різниця])","v":{"v":0,"d":"0 грн."}},null,"Разом",{"$f":"SUBTOTAL(109,Gifts[Запланована витрата])","v":{"v":0,"d":"0 грн."}},{"$f":"SUBTOTAL(109,Gifts[Фактична витрата])","v":{"v":0,"d":"0 грн."}},{"$f":"SUBTOTAL(109,Gifts[Різниця])","v":{"v":0,"d":"0 грн."}}]